fUST/lending_fUST_20240731
["ID","MTS","AMOUNT","RATE_DAILY","PERIOD"]
[333729306,1722419446053,-14598.28627442,0.0001359,2]
[333729307,1722419577218,360.8,0.00026,120]
[333729308,1722419598596,652.8,0.00027,120]
[333731241,1722420398788,165.42397432,9.999e-05,2]
[333731244,1722420453801,201.40749574,9.999e-05,2]
[333731246,1722420463793,201.40749574,9.999e-05,2]
[333731247,1722420472772,803.95416911,9.999e-05,2]
[333731250,1722420490134,5984.60464923,9.999e-05,2]
[333731251,1722420493502,188.16956636,9.999e-05,2]
[333731252,1722420494564,404.47935249,9.999e-05,2]
[333731254,1722420501344,193.90661985,9.999e-05,2]
[333731255,1722420505247,155.72742978,9.999e-05,2]
[333731272,1722420516219,2964.92328943,9.999e-05,2]
[333731310,1722420531758,209.63108512,9.999e-05,2]
[333731314,1722420580144,375.76915132,9.999e-05,2]
[333731318,1722420588805,201.06882996,9.999e-05,2]
[333731334,1722420607494,154.88370439,9.999e-05,2]
[333731521,1722420640223,-277.66440512,0.0001212,2]
[333731522,1722420640233,-188.16956636,0.0001212,2]
[333731523,1722420640243,-167.024069,0.00012986,2]
[333731524,1722420640253,-280.24898836,0.00013289,2]
[333731525,1722420640263,-617.72494616,0.00013498,2]
[333731526,1722420640275,-1024.18379875,0.00013498,2]
[333731527,1722420640285,-1410.0,0.00013562,2]
[333731528,1722420640295,-683.53113894,0.00013577,2]
[333731529,1722420640304,-683.53113891,0.00013582,2]
[333731531,1722420640314,-300.0,0.00013586,2]
[333731533,1722420640323,-300.0,0.00013586,2]
[333731535,1722420640333,-683.53113891,0.00013587,2]
[333731537,1722420640343,-2842.82,0.00013587,2]
[333731539,1722420640353,-2842.82,0.00013587,2]
[333731540,1722420640364,-2842.82,0.00013587,2]
[333731541,1722420640374,-2000.0,0.00013588,2]
[333731542,1722420640385,-683.53113891,0.00013592,2]
[333731543,1722420640394,-683.53113891,0.00013597,2]
[333731544,1722420640404,-20735.70050667,0.00013598,2]
[333731545,1722420640417,-46718.7469389,0.00013598,2]
[333731546,1722420640427,-200.0,0.00013598,2]
[333731547,1722420640436,-9866.38730963,0.000136,5]
[333731548,1722420640446,-5000.0,0.000136,2]
[333731549,1722420640457,-1161.259907,0.00013667,2]
[333731550,1722420640466,-193.00926843,0.00013678,2]
[333731551,1722420640479,-968.25063857,0.00013678,2]
[333731552,1722420640488,-4645.039628,0.00013678,2]
[333731553,1722420640498,-2842.82,0.00013686,2]
[333731554,1722420640507,-1161.259907,0.00013687,2]
[333731555,1722420640518,-2842.82,0.00013687,2]
[333731556,1722420640527,-2842.82,0.00013687,2]
[333731557,1722420640536,-2842.82,0.00013687,2]
[333731558,1722420640546,-2842.82,0.00013687,2]
[333731559,1722420640556,-151.0,0.00013688,2]
[333731560,1722420640567,-440.381812,0.00013688,2]
[333731561,1722420640577,-440.381812,0.00013688,2]
[333731562,1722420640587,-151.0,0.00013688,2]
[333731563,1722420640596,-151.0,0.00013688,2]
[333731564,1722420640606,-151.0,0.00013688,2]
[333731565,1722420640615,-151.0,0.00013688,2]
[333731566,1722420640625,-151.0,0.00013688,2]
[333731567,1722420640635,-151.0,0.00013688,2]
[333731568,1722420640645,-402.515136,0.00013688,2]
[333731569,1722420640657,-402.515136,0.00013688,2]
[333731570,1722420640666,-151.0,0.00013688,2]
[333731571,1722420640675,-151.0,0.00013688,2]
[333731572,1722420640685,-9290.079256,0.00013688,2]
[333731573,1722420640695,-1161.259907,0.00013689,2]
[333731574,1722420640704,-1161.259907,0.0001369,2]
[333731575,1722420640713,-2842.82,0.00013697,2]
[333731576,1722420640724,-2842.82,0.00013697,2]
[333731577,1722420640733,-2842.82,0.00013697,2]
[333731578,1722420640743,-2842.82,0.00013697,2]
[333731579,1722420640752,-2842.82,0.00013697,2]
[333731580,1722420640761,-1357.51978116,0.00013697,2]
[333731592,1722420643055,-1485.30021884,0.00013697,2]
[333731593,1722420643065,-1999.9464412,0.00013697,2]
[333731594,1722420643077,-842.8735588,0.00013697,2]
[333731595,1722420643087,-2842.82,0.00013697,2]
[333731596,1722420643096,-2842.82,0.00013697,2]
[333731597,1722420643105,-1519.0576386,0.00013698,5]
[333731598,1722420643117,-11846.71244625,0.00013698,5]
[333731599,1722420643128,-500.0,0.00013698,2]
[333731600,1722420643137,-587.655908,0.00013698,2]
[333731601,1722420643148,-500.0,0.00013698,2]
[333731602,1722420643160,-500.0,0.00013698,2]
[333731603,1722420643170,-500.0,0.00013698,2]
[333731604,1722420643179,-500.0,0.00013698,2]
[333731605,1722420643190,-500.0,0.00013698,2]
[333731606,1722420643201,-158.54426512,0.00013698,2]
[333731607,1722420643212,-248.39039608,0.00013698,2]
[333731608,1722420643222,-500.0,0.00013698,2]
[333731609,1722420643233,-500.0,0.00013698,2]
[333731610,1722420643243,-500.0,0.00013698,2]
[333731611,1722420643253,-602.85399076,0.00013698,2]
[333731612,1722420643263,-500.0,0.00013698,2]
[333731613,1722420643273,-500.0,0.00013698,2]
[333731614,1722420643283,-612.73191799,0.00013698,2]
[333731615,1722420643293,-500.0,0.00013698,2]
[333731616,1722420643302,-466.83148771,0.00013698,2]
[333731617,1722420643312,-500.0,0.00013698,2]
[333731618,1722420643321,-500.0,0.00013698,2]
[333731619,1722420643332,-500.0,0.00013698,2]
[333731620,1722420643341,-500.0,0.00013698,2]
[333731621,1722420643351,-500.0,0.00013698,2]
[333731622,1722420643362,-500.0,0.00013698,2]
[333731623,1722420643374,-532.79055912,0.00013698,2]
[333731624,1722420643384,-151.0,0.00013698,2]
[333731625,1722420643394,-151.0,0.00013698,2]
[333731626,1722420643403,-151.0,0.00013698,2]
[333731627,1722420643414,-151.0,0.00013698,2]
[333731628,1722420643423,-151.0,0.00013698,2]
[333731629,1722420643433,-151.0,0.00013698,2]
[333731630,1722420643442,-151.0,0.00013698,2]
[333731631,1722420643451,-151.0,0.00013698,2]
[333731632,1722420643461,-151.0,0.00013698,2]
[333731633,1722420643470,-151.0,0.00013698,2]
[333731634,1722420643480,-500.0,0.00013698,2]
[333731635,1722420643490,-1436.5,0.00013698,2]
[333731636,1722420643500,-151.0,0.00013698,2]
[333731637,1722420643510,-151.0,0.00013698,2]
[333731638,1722420643519,-511.11068816,0.00013698,2]
[333731639,1722420643529,-151.0,0.00013698,2]
[333731640,1722420643538,-151.0,0.00013698,2]
[333731641,1722420643549,-151.0,0.00013698,2]
[333731642,1722420643559,-151.0,0.00013698,2]
[333731643,1722420643569,-190.63711,0.00013698,2]
[333731644,1722420643580,-500.0,0.00013698,2]
[333731645,1722420643590,-500.0,0.00013698,2]
[333731646,1722420643599,-500.0,0.00013698,2]
[333731647,1722420643609,-500.0,0.00013698,2]
[333731648,1722420643618,-500.0,0.00013698,2]
[333731649,1722420643627,-151.0,0.00013698,2]
[333731650,1722420643638,-151.0,0.00013698,2]
[333731651,1722420643648,-500.0,0.00013698,2]
[333731652,1722420643659,-151.0,0.00013698,2]
[333731653,1722420643669,-151.0,0.00013698,2]
[333731654,1722420643679,-151.0,0.00013698,2]
[333731655,1722420643688,-151.0,0.00013698,2]
[333731656,1722420643698,-151.0,0.00013698,2]
[333731657,1722420643708,-151.0,0.00013698,2]
[333731658,1722420643720,-151.0,0.00013698,2]
[333731659,1722420643730,-500.0,0.00013698,2]
[333731660,1722420643740,-269.593331,0.00013698,2]
[333731661,1722420643749,-151.0,0.00013698,2]
[333731662,1722420643759,-956.34,0.00013698,2]
[333731663,1722420643767,-538.81412203,0.00013698,2]
[333731664,1722420643777,-934.78,0.00013698,2]
[333731665,1722420643786,-500.0,0.00013698,2]
[333731666,1722420643796,-500.0,0.00013698,2]
[333731667,1722420643806,-500.0,0.00013698,2]
[333731668,1722420643815,-500.0,0.00013698,2]
[333731669,1722420643825,-500.0,0.00013698,2]
[333731670,1722420643836,-151.0,0.00013698,2]
[333731671,1722420643846,-500.84008749,0.00013698,2]
[333731672,1722420643856,-151.0,0.00013698,2]
[333731673,1722420643865,-151.0,0.00013698,2]
[333731674,1722420643875,-316.18399748,0.00013698,2]
[333731675,1722420643884,-500.0,0.00013698,2]
[333731676,1722420643895,-500.0,0.00013698,2]
[333731677,1722420643904,-503.42198237,0.00013698,2]
[333731678,1722420643914,-312.80933271,0.00013698,2]
[333731679,1722420643923,-500.0,0.00013698,2]
[333731680,1722420643933,-396.72760412,0.00013698,2]
[333731681,1722420643942,-500.0,0.00013698,2]
[333731682,1722420643952,-500.0,0.00013698,2]
[333731683,1722420643962,-500.0,0.00013698,2]
[333731684,1722420643972,-500.0,0.00013698,2]
[333731685,1722420643981,-500.0,0.00013698,2]
[333731686,1722420643991,-500.0,0.00013698,2]
[333731687,1722420644000,-507.03103475,0.00013698,2]
[333731688,1722420644010,-502.54543817,0.00013698,2]
[333731689,1722420644021,-508.12849146,0.00013698,2]
[333731690,1722420644031,-151.0,0.00013698,2]
[333731691,1722420644041,-151.461701,0.00013698,2]
[333731692,1722420644050,-507.20628239,0.00013698,2]
[333731693,1722420644059,-151.0,0.00013698,2]
[333731694,1722420644069,-237.808297,0.00013698,2]
[333731695,1722420644078,-500.0,0.00013698,2]
[333731696,1722420644088,-500.0,0.00013698,2]
[333731697,1722420644098,-151.0,0.00013698,2]
[333731698,1722420644107,-151.0,0.00013698,2]
[333731699,1722420644116,-500.0,0.00013698,2]
[333731700,1722420644126,-151.0,0.00013698,2]
[333731701,1722420644136,-153.183534,0.00013698,2]
[333731702,1722420644145,-500.0,0.00013698,2]
[333731703,1722420644154,-545.39409708,0.00013698,2]
[333731704,1722420644163,-500.0,0.00013698,2]
[333731705,1722420644173,-151.0,0.00013698,2]
[333731706,1722420644183,-151.449174,0.00013698,2]
[333731707,1722420644192,-500.0,0.00013698,2]
[333731708,1722420644201,-500.0,0.00013698,2]
[333731709,1722420644210,-1120.73,0.00013698,2]
[333731710,1722420644220,-500.0,0.00013698,2]
[333731711,1722420644230,-353.71210035,0.00013698,2]
[333731712,1722420644240,-500.0,0.00013698,2]
[333731713,1722420644250,-500.0,0.00013698,2]
[333731714,1722420644260,-503.64346272,0.00013698,2]
[333731715,1722420644271,-445.51695663,0.00013698,2]
[333731716,1722420644280,-500.0,0.00013698,2]
[333731717,1722420644290,-522.62450621,0.00013698,2]
[333731718,1722420644300,-500.0,0.00013698,2]
[333731719,1722420644309,-151.0,0.00013698,2]
[333731720,1722420644319,-500.0,0.00013698,2]
[333731721,1722420644329,-151.0,0.00013698,2]
[333731722,1722420644339,-500.0,0.00013698,2]
[333731723,1722420644349,-500.0,0.00013698,2]
[333731724,1722420644358,-303.59071256,0.00013698,2]
[333731725,1722420644368,-500.0,0.00013698,2]
[333731726,1722420644377,-1008.4,0.00013698,2]
[333731727,1722420644388,-500.0,0.00013698,2]
[333731728,1722420644397,-500.0,0.00013698,2]
[333731729,1722420644407,-500.0,0.00013698,2]
[333731730,1722420644417,-500.0,0.00013698,2]
[333731731,1722420644428,-500.0,0.00013698,2]
[333731732,1722420644437,-525.23997545,0.00013698,2]
[333731733,1722420644446,-151.0,0.00013698,2]
[333731734,1722420644456,-151.0,0.00013698,2]
[333731735,1722420644465,-151.0,0.00013698,2]
[333731736,1722420644475,-151.0,0.00013698,2]
[333731737,1722420644485,-151.0,0.00013698,2]
[333731738,1722420644494,-151.0,0.00013698,2]
[333731739,1722420644504,-500.0,0.00013698,2]
[333731740,1722420644513,-500.0,0.00013698,2]
[333731741,1722420644523,-500.0,0.00013698,2]
[333731742,1722420644533,-151.0,0.00013698,2]
[333731743,1722420644542,-151.0,0.00013698,2]
[333731744,1722420644552,-500.0,0.00013698,2]
[333731745,1722420644561,-152.9199,0.00013698,2]
[333731746,1722420644571,-500.0,0.00013698,2]
[333731747,1722420644581,-500.0,0.00013698,2]
[333731748,1722420644590,-500.0,0.00013698,2]
[333731749,1722420644600,-500.0,0.00013698,2]
[333731750,1722420644609,-500.0,0.00013698,2]
[333731751,1722420644618,-500.0,0.00013698,2]
[333731752,1722420644628,-500.0,0.00013698,2]
[333731753,1722420644638,-502.75779152,0.00013698,2]
[333731754,1722420644649,-500.0,0.00013698,2]
[333731755,1722420644659,-151.0,0.00013698,2]
[333731756,1722420644668,-151.0,0.00013698,2]
[333731757,1722420644678,-151.0,0.00013698,2]
[333731758,1722420644688,-151.0,0.00013698,2]
[333731759,1722420644698,-151.0,0.00013698,2]
[333731760,1722420644707,-1108.17,0.00013698,2]
[333731761,1722420644716,-500.0,0.00013698,2]
[333731762,1722420644727,-500.0,0.00013698,2]
[333731763,1722420644736,-500.0,0.00013698,2]
[333731764,1722420644745,-500.0,0.00013698,2]
[333731765,1722420644755,-500.0,0.00013698,2]
[333731766,1722420644764,-500.0,0.00013698,2]
[333731767,1722420644775,-500.0,0.00013698,2]
[333731768,1722420644784,-500.0,0.00013698,2]
[333731769,1722420644794,-506.41407044,0.00013698,2]
[333731770,1722420644804,-976.25,0.00013698,2]
[333731771,1722420644814,-500.0,0.00013698,2]
[333731772,1722420644824,-323.22216477,0.00013698,2]
[333731773,1722420644834,-500.0,0.00013698,2]
[333731774,1722420644843,-1043.9,0.00013698,2]
[333731775,1722420644853,-500.0,0.00013698,2]
[333731776,1722420644863,-516.70228779,0.00013698,2]
[333731777,1722420644873,-500.0,0.00013698,2]
[333731778,1722420644883,-350.31172901,0.00013698,2]
[333731779,1722420644893,-500.0,0.00013698,2]
[333731780,1722420644902,-500.0,0.00013698,2]
[333731781,1722420644912,-500.0,0.00013698,2]
[333731782,1722420644922,-500.0,0.00013698,2]
[333731783,1722420644932,-500.0,0.00013698,2]
[333731784,1722420644942,-500.0,0.00013698,2]
[333731785,1722420644951,-500.0,0.00013698,2]
[333731786,1722420644961,-500.0,0.00013698,2]
[333731787,1722420644971,-565.98386483,0.00013698,2]
[333731788,1722420644981,-500.0,0.00013698,2]
[333731789,1722420645161,-40.16949061,0.00013698,2]
[333731790,1722420645351,-737.02050939,0.00013698,2]
[333731791,1722420645360,-586.35956034,0.00013698,2]
[333731792,1722420645370,-500.0,0.00013698,2]
[333731793,1722420645379,-890.6,0.00013698,2]
[333731794,1722420645388,-500.0,0.00013698,2]
[333731795,1722420645397,-500.0,0.00013698,2]
[333731796,1722420645407,-500.0,0.00013698,2]
[333731797,1722420645416,-601.868645,0.00013698,2]
[333731798,1722420645426,-601.868645,0.00013698,2]
[333731799,1722420645435,-500.0,0.00013698,2]
[333731800,1722420645445,-151.522497,0.00013698,2]
[333731801,1722420645455,-601.868645,0.00013698,2]
[333731802,1722420645464,-601.868645,0.00013698,2]
[333731803,1722420645473,-601.868645,0.00013698,2]
[333731804,1722420645482,-601.868645,0.00013698,2]
[333731806,1722420645492,-500.0,0.00013698,2]
[333731807,1722420645502,-500.0,0.00013698,2]
[333731809,1722420645511,-601.868645,0.00013698,2]
[333731811,1722420645520,-500.0,0.00013698,2]
[333731812,1722420645529,-500.0,0.00013698,2]
[333731813,1722420645538,-500.0,0.00013698,2]
[333731814,1722420645547,-500.0,0.00013698,2]
[333731815,1722420645556,-500.0,0.00013698,2]
[333731816,1722420645566,-181.93672578,0.00013698,2]
[333731817,1722420645578,-323.06909995,0.00013698,2]
[333731818,1722420645587,-500.0,0.00013698,2]
[333731819,1722420645596,-500.0,0.00013698,2]
[333731821,1722420645606,-333.30590005,0.00013698,2]
[333731824,1722420646132,-676.12409995,0.00013698,2]
[333731825,1722420646144,-151.0,0.00013698,2]
[333731826,1722420646154,-51.80265261,0.00013698,2]
[333731827,1722420646166,-448.19734739,0.00013698,2]
[333731828,1722420646175,-151.0,0.00013698,2]
[333731829,1722420646185,-362.61476584,0.00013698,2]
[333731830,1722420646202,-137.38523416,0.00013698,2]
[333731831,1722420646212,-253.04787966,0.00013698,2]
[333731832,1722420646224,-246.95212034,0.00013698,2]
[333731833,1722420646235,-568.57275059,0.00013698,2]
[333731834,1722420646246,-1326.78,0.00013698,2]
[333731835,1722420646257,-500.0,0.00013698,2]
[333731836,1722420646266,-151.0,0.00013698,2]
[333731837,1722420646276,-151.0,0.00013698,2]
[333731838,1722420646286,-500.0,0.00013698,2]
[333731839,1722420646295,-500.0,0.00013698,2]
[333731840,1722420646304,-1293.97,0.00013698,2]
[333731841,1722420646314,-151.005796,0.00013698,2]
[333731842,1722420646323,-122.11384807,0.00013698,2]
[333731905,1722421007565,154.76012181,9.999e-05,2]
[333731923,1722421110924,154.82066348,9.999e-05,2]
[333731948,1722421212614,155.6203917,9.999e-05,2]
[333731951,1722421285950,15777.15622902,9.999e-05,2]
[333731952,1722421290187,870.63807554,9.999e-05,2]
[333731953,1722421290311,4707.01308214,9.999e-05,2]
[333731954,1722421290707,157.53942382,9.999e-05,2]
[333731955,1722421317853,3781.31705909,9.999e-05,2]
[333731956,1722421326657,542.54638972,9.999e-05,2]
[333731957,1722421331401,160.02952721,9.999e-05,2]
[333731962,1722421349802,154.76012181,9.999e-05,2]
[333731963,1722421364111,231.79343084,9.999e-05,2]
[333731968,1722421369397,154.76012181,9.999e-05,2]
[333731977,1722421451335,154.86528078,9.999e-05,2]
[333731992,1722421542818,276.83020096,9.999e-05,2]
[333732010,1722421585261,154.79103211,0.0001,2]
[333732012,1722421588966,-173.0032611,0.00025,30]
[333732013,1722421588994,-4194.0,0.00025,30]
[333732014,1722421589026,-1923.25924128,0.00026,30]
[333732015,1722421589295,-153.48,0.000266,31]
[333732016,1722421589330,-153.48,0.000266,31]
[333732017,1722421589360,-153.48,0.000266,31]
[333732018,1722421589391,-153.48,0.000266,31]
[333732019,1722421589420,-153.48,0.000266,31]
[333732020,1722421589450,-153.48,0.000266,31]
[333732021,1722421589483,-153.48,0.000266,31]
[333732022,1722421589513,-153.48,0.000266,31]
[333732023,1722421589543,-153.48,0.000266,31]
[333732024,1722421589574,-153.48,0.000269,31]
[333732025,1722421589603,-153.48,0.000269,31]
[333732026,1722421589636,-153.48,0.000269,31]
[333732027,1722421589669,-153.48,0.000269,31]
[333732028,1722421589700,-153.48,0.000269,31]
[333732029,1722421589732,-153.48,0.000269,31]
[333732030,1722421589763,-153.48,0.000269,31]
[333732031,1722421589794,-153.48,0.000269,31]
[333732032,1722421589824,-153.48,0.000269,31]
[333732033,1722421589850,-312.1567,0.00026959,30]
[333732034,1722421589881,-153.48,0.000272,31]
[333732035,1722421589911,-153.48,0.000272,31]
[333732036,1722421589944,-153.48,0.000272,31]
[333732037,1722421589974,-153.48,0.000272,31]
[333732038,1722421590006,-153.48,0.000272,31]
[333732039,1722421590040,-153.48,0.000272,31]
[333732040,1722421590071,-153.48,0.000272,31]
[333732041,1722421590102,-153.48,0.000272,31]
[333732042,1722421590132,-153.48,0.000272,31]
[333732043,1722421590158,-442.54195142,0.00027397,60]
[333732044,1722421590183,-1044.669889,0.00027397,120]
[333732045,1722421590213,-153.48,0.000275,31]
[333732046,1722421590243,-153.48,0.000275,31]
[333732047,1722421590272,-153.48,0.000275,31]
[333732048,1722421590303,-153.48,0.000275,31]
[333732049,1722421590333,-153.48,0.000275,31]
[333732050,1722421590364,-153.48,0.000275,31]
[333732051,1722421590395,-153.48,0.000275,31]
[333732052,1722421590424,-153.48,0.000275,31]
[333732053,1722421590455,-153.48,0.000275,31]
[333732054,1722421590484,-153.48,0.000279,31]
[333732055,1722421590514,-153.48,0.000279,31]
[333732056,1722421590544,-153.48,0.000279,31]
[333732057,1722421590575,-153.48,0.000279,31]
[333732058,1722421590605,-153.48,0.000279,31]
[333732059,1722421590634,-153.48,0.000279,31]
[333732060,1722421590663,-153.48,0.000279,31]
[333732061,1722421590693,-153.48,0.000279,31]
[333732062,1722421590723,-153.48,0.000279,31]
[333732063,1722421590747,-6299.43573632,0.00028697,60]
[333732064,1722421590770,-375.0666,0.00028959,30]
[333732065,1722421590794,-156.08364473,0.0002988,30]
[333732066,1722421590822,-814.29805521,0.000299,65]
[333732067,1722421590847,-600.0,0.0003,120]
[333732068,1722421590872,-825.0,0.0003,120]
[333732069,1722421590896,-151.0,0.0003,120]
[333732070,1722421590920,-151.0,0.0003,120]
[333732071,1722421590947,-770.0,0.0003,120]
[333732072,1722421590971,-10002.36418397,0.0003,30]
[333732073,1722421590997,-151.0,0.0003,120]
[333732074,1722421591027,-151.0,0.0003,120]
[333732075,1722421591052,-151.0,0.0003,120]
[333732076,1722421591079,-178.786866,0.0003,120]
[333732077,1722421591105,-389413.64527966,0.000303,30]
[333732078,1722421591136,-1044.669889,0.00031963,120]
[333732079,1722421591168,-4906.0,0.00032,30]
[333732080,1722421591194,-600.0,0.00032,120]
[333732081,1722421591219,-151.0,0.00032301,120]
[333732082,1722421591244,-2398.07191998,0.000325,60]
[333732083,1722421591269,-1736.57681101,0.000325,30]
[333732084,1722421591294,-3000.0,0.000325,30]
[333732085,1722421591322,-1000.0,0.00032876,30]
[333732086,1722421591346,-1000.0,0.00032876,30]
[333732087,1722421591371,-1057.10113659,0.00032876,30]
[333732088,1722421591394,-1300.22407624,0.00033,120]
[333732089,1722421591419,-600.0,0.00034,120]
[333732090,1722421591443,-1000.0,0.00034,120]
[333732091,1722421591468,-151.0,0.00034274,120]
[333732092,1722421591492,-151.0,0.00034603,120]
[333732093,1722421591515,-20000.0,0.00035,30]
[333732094,1722421591538,-10000.0,0.00035,30]
[333732095,1722421591562,-13595.0,0.00035,30]
[333732096,1722421591585,-2541.62906585,0.00035,120]
[333732097,1722421591610,-164.66797884,0.00035,120]
[333732098,1722421591633,-2000.0,0.00035,120]
[333732099,1722421591657,-2000.0,0.00035,120]
[333732100,1722421591681,-2000.0,0.00035,120]
[333732101,1722421591704,-2000.0,0.00035,120]
[333732102,1722421591729,-417.1477138,0.00035,30]
[333732104,1722421596574,-2226.3962862,0.00035,30]
[333732105,1722421596620,-600.0,0.00036,120]
[333732106,1722421597910,-2711.96980105,0.00036,30]
[333732107,1722421597962,-221.3181939,0.0003609,120]
[333732108,1722421598007,-1044.669889,0.0003653,120]
[333732109,1722421598053,-358021.89087817,0.000368,30]
[333732110,1722421598098,-93257.26,0.000368,30]
[333732111,1722421598142,-151.0,0.00036904,120]
[333732112,1722421598188,-1309.18889394,0.00037878,46]
[333732113,1722421598233,-40456.30605774,0.000379,30]
[333732115,1722421605549,-1616.84779506,0.000379,30]
[333732116,1722421605577,-305.20767145,0.00038,30]
[333732117,1722421605602,-2541.62906585,0.00038,120]
[333732118,1722421605628,-600.0,0.00038,120]
[333732119,1722421605892,-4840.91439078,0.000382,30]
[333732123,1722421646391,297.07388953,9.999e-05,2]
[333732124,1722421652163,617.1352614,9.999e-05,2]
[333732125,1722421653929,154.97509757,9.999e-05,2]
[333732132,1722421664872,237.07330954,9.999e-05,2]
[333732144,1722421684401,319.40039305,9.999e-05,2]
[333732151,1722421695631,180.26595097,9.999e-05,2]
[333732213,1722421725100,12929.30552394,0.0001,2]
[333732216,1722421726031,8883.11472286,9.999e-05,2]
[333732219,1722421726468,182.85497199,0.000245,120]
[333732227,1722421775091,188.16956636,9.999e-05,2]
[333732232,1722421821620,555.71123752,9.999e-05,2]
[333732265,1722421832366,-154.91477639,0.0001212,2]
[333732266,1722421832377,-197.36110812,0.0001212,2]
[333732267,1722421832388,-585.9505408,0.0001212,2]
[333732290,1722421838435,-6805.15141442,0.0001212,2]
[333732291,1722421838445,-406.04755903,0.0001212,2]
[333732292,1722421838455,-942.28494783,0.0001212,2]
[333732293,1722421838465,-2030.65796342,0.0001212,2]
[333732294,1722421838475,-542.48310742,0.0001212,2]
[333732295,1722421838484,-195.95298196,0.0001212,2]
[333732296,1722421838495,-265.50852914,0.0001212,2]
[333732297,1722421838505,-531.09299059,0.0001212,2]
[333732298,1722421838515,-156.52929486,0.0001212,2]
[333732299,1722421838526,-9566.23980276,0.0001212,2]
[333732300,1722421838535,-244.72553756,0.0001212,2]
[333732301,1722421838546,-3039.77437972,0.00012835,2]
[333732302,1722421838557,-167.024069,0.00012986,2]
[333732303,1722421838567,-171.28236787,0.00013587,2]
[333732304,1722421838578,-300.0,0.00013587,2]
[333732305,1722421838587,-1436.67015177,0.00013588,2]
[333732306,1722421838598,-3937.12832544,0.00013588,2]
[333732307,1722421838609,-350.30228119,0.00013588,2]
[333732308,1722421838621,-171.28236783,0.0001359,2]
[333732309,1722421838634,-171.28236783,0.00013593,2]
[333732310,1722421838647,-171.28236783,0.00013595,2]
[333732311,1722421838657,-88888.0,0.00013597,2]
[333732312,1722421838667,-2809.49,0.00013597,2]
[333732314,1722421838676,-2809.49,0.00013597,2]
[333732316,1722421838687,-171.28236783,0.00013598,2]
[333732318,1722421838696,-412.09214642,0.00013598,2]
[333732320,1722421838706,-200.0,0.00013598,2]
[333732322,1722421838717,-150.112233,0.000136,2]
[333732323,1722421838727,-2809.49,0.00013687,2]
[333732324,1722421838739,-2809.49,0.00013687,2]
[333732326,1722421838748,-2809.49,0.00013687,2]
[333732327,1722421838757,-2809.49,0.00013687,2]
[333732328,1722421838767,-2809.49,0.00013687,2]
[333732329,1722421838776,-18968.44129652,0.00013688,2]
[333732331,1722421838785,-151.0,0.00013688,2]
[333732332,1722421838794,-151.0,0.00013688,2]
[333732333,1722421838804,-151.0,0.00013688,2]
[333732334,1722421838813,-151.0,0.00013688,2]
[333732335,1722421838822,-151.0,0.00013688,2]
[333732336,1722421838831,-357.888183,0.00013688,2]
[333732337,1722421838840,-357.888183,0.00013688,2]
[333732338,1722421838850,-357.888183,0.00013688,2]
[333732339,1722421838859,-357.888183,0.00013688,2]
[333732340,1722421838869,-151.0,0.00013688,2]
[333732341,1722421838878,-151.0,0.00013688,2]
[333732342,1722421838887,-151.0,0.00013688,2]
[333732343,1722421838897,-151.0,0.00013688,2]